{"text_format":"2","workbook":"xlsx","n_sheets":2,"sheets":["다전공 부전공, 모집학과표","마이크로전공표"],"not_rendered":{"charts":0,"images":0,"macros":0,"external_links":0,"defined_names":3,"comments":1,"pivot_tables":0},"unopened":[],"bounds":{"document_bytes":16777216,"sheet_cells":100000,"run_cost":"one","rows_first":2000,"rows_last":500,"rows_between":2000,"halvings":0,"cell_chars":16384,"cell_head_chars":4096},"cells_cut":0,"cells_raw":0,"read":"whole","date_system":"1900"}

{"sheet":"다전공 부전공, 모집학과표","index":0,"n_rows":39,"n_cols":10,"rows_kept":39,"cut":false,"hidden":false,"merged":[[29,0,38,0],[1,0,1,2],[1,4,1,9],[10,0,16,0],[17,0,23,0],[24,0,28,0],[19,4,19,9],[14,4,14,9],[9,4,11,4],[0,0,0,10],[9,5,11,5],[6,5,7,5],[3,0,9,0],[4,5,5,5],[4,4,5,4],[6,4,7,4]]}
["2024학년도 제1학기 다전공, 부전공 모집 학과"]
["제2전공 및 부전공",null,null,null,"연계전공, 융합전공"]
["대학","다전공 모집단위","신청 가능 대상",null,"주관대학","전공구분","학과","주관학과","연계·융합 학과","신청 가능 대상"]
["글로벌\n인문학부대학","한국언어문화전공","전학년",null,"글로벌인문학부대학","연계전공","글로벌문화콘텐츠","프랑스어권지역학전공","일본어권지역학전공, 중국어권지역학전공, 영어권지역학전공,\n독일어권지역학전공, 러시아·중앙아시아지역학전공","전학년"]
[null,"일본어권지역학전공","전학년",null,"디자인대학","융합전공","스마트리빙디자인","인더스트리얼디자인전공","텍스타일디자인전공","전학년"]
[null,"중국어권지역학전공","전학년",null,null,null,"트랜스미디어디자인융합전공","커뮤니케이션디자인전공","AR·VR미디어디자인전공","전학년"]
[null,"영어권지역학전공","전학년",null,"예술대학","연계전공","스토리텔링","연극전공","한국언어문화전공","전학년"]
[null,"프랑스어권지역학전공","전학년",null,null,null,"콘텐츠제작","디지털만화영상전공","문화예술경영전공, 한일문화콘텐츠학과(서울), 조형예술학과(서울)","전학년"]
[null,"독일어권지역학전공","전학년",null,"융합기술대학","융합전공","글로벌마케팅","글로벌금융경영학부","경영공학과, 한국언어문화전공, 일본어권지역학전공, \n중국어권지역학전공, 영어권지역학전공,\n프랑스어권지역학전공, 독일어권지역학전공, \n러시아·중앙아시아지역학전공","전학년"]
[null,"러시아·중앙아시아지역학전공","전학년",null,"공과대학","융합전공","빅데이터","소프트웨어학과","경영공학과, 그린화학공학과, 전자공학과","전학년"]
["디자인대학","커뮤니케이션디자인전공","전학년",null,null,null,"로봇AI","소프트웨어학과","휴먼지능로봇공학과","전학년"]
[null,"패션디자인전공","전학년",null,null,null,"글로벌데이터경영","경영공학과","한국언어문화전공,영어권지역학전공,러시아중앙아시아지역학전공,프랑스어권지역학전공,일본어권지역학전공,독일어권지역학전공","전학년"]
[null,"텍스타일디자인전공","전학년"]
[null,"스페이스디자인전공","전학년"]
[null,"세라믹디자인전공","전학년",null,"※ 자기설계융합전공은 별도 공지사항을 참고해 주시기 바랍니다."]
[null,"인터스트리얼디자인전공","전학년"]
[null,"AR·VR미디어디자인전공","전학년"]
["예술대학","영화영상전공","전학년"]
[null,"연극전공","전학년"]
[null,"무대미술전공","전학년"]
[null,"사진영상미디어전공","전학년"]
[null,"디지털만화영상전공","전학년"]
[null,"문화예술경영전공","전학년"]
[null,"디지털콘텐츠전공","전학년"]
["융합기술대학","글로벌금융경영학부","전학년"]
[null,"식품공학과","전학년"]
[null,"그린스마트시티학과","전학년"]
[null,"스포츠경영전공","전학년"]
[null,"사회체육전공","전학년"]
["공과대학","전자공학과","전학년"]
[null,"소프트웨어학과","전학년"]
[null,"스마트정보통신공학과","전학년"]
[null,"경영공학과","전학년"]
[null,"그린화학공학과","전학년"]
[null,"건설시스템공학과","전학년"]
[null,"정보보안공학과","전학년"]
[null,"시스템반도체공학과","전학년"]
[null,"휴먼지능로봇공학과","전학년"]
[null,"지능형로봇학과","전학년"]

{"sheet":"마이크로전공표","index":1,"n_rows":195,"n_cols":13,"rows_kept":195,"cut":false,"hidden":false,"merged":[[59,1,62,1],[63,1,66,1],[7,0,10,0],[11,0,14,0],[163,1,165,1],[166,1,170,1],[132,1,135,1],[136,1,138,1],[139,1,142,1],[143,1,147,1],[148,1,151,1],[189,1,191,1],[192,1,194,1],[171,1,173,1],[174,1,177,1],[178,1,180,1],[181,1,183,1],[184,1,188,1],[128,1,131,1],[94,1,96,1],[97,1,99,1],[100,1,103,1],[104,1,107,1],[108,1,111,1],[152,1,155,1],[156,1,158,1],[159,1,162,1],[48,1,50,1],[51,1,54,1],[55,1,58,1],[189,0,191,0],[192,0,194,0],[7,1,10,1],[11,1,14,1],[15,1,18,1],[19,1,23,1],[24,1,28,1],[29,1,31,1],[32,1,36,1],[79,1,81,1],[82,1,84,1],[85,1,87,1],[88,1,90,1],[91,1,93,1],[67,1,71,1],[72,1,74,1],[75,1,78,1],[112,1,115,1],[116,1,119,1],[120,1,123,1],[124,1,127,1],[171,0,173,0],[174,0,177,0],[178,0,180,0],[181,0,183,0],[184,0,188,0],[152,0,155,0],[156,0,158,0],[159,0,162,0],[163,0,165,0],[166,0,170,0],[132,0,135,0],[136,0,138,0],[139,0,142,0],[143,0,147,0],[148,0,151,0],[112,0,115,0],[116,0,119,0],[120,0,123,0],[124,0,127,0],[128,0,131,0],[48,0,50,0],[51,0,54,0],[55,0,58,0],[94,0,96,0],[97,0,99,0],[100,0,103,0],[104,0,107,0],[108,0,111,0],[79,0,81,0],[82,0,84,0],[85,0,87,0],[88,0,90,0],[91,0,93,0],[184,11,188,11],[189,11,191,11],[192,11,194,11],[163,11,165,11],[166,11,170,11],[171,11,173,11],[174,11,177,11],[178,11,180,11],[19,0,23,0],[24,0,28,0],[29,0,31,0],[32,0,36,0],[37,0,39,0],[181,11,183,11],[143,11,147,11],[148,11,151,11],[152,11,155,11],[156,11,158,11],[59,0,62,0],[63,0,66,0],[67,0,71,0],[72,0,74,0],[75,0,78,0],[40,0,43,0],[112,11,115,11],[116,11,119,11],[120,11,123,11],[88,11,90,11],[91,11,93,11],[94,11,96,11],[97,11,99,11],[100,11,103,11],[159,11,162,11],[124,11,127,11],[128,11,131,11],[132,11,135,11],[136,11,138,11],[139,11,142,11],[82,11,84,11],[85,11,87,11],[51,11,54,11],[55,11,58,11],[59,11,62,11],[63,11,66,11],[67,11,71,11],[104,11,107,11],[108,11,111,11],[48,11,50,11],[7,11,10,11],[11,11,14,11],[15,11,18,11],[19,11,23,11],[24,11,28,11],[72,11,74,11],[75,11,78,11],[79,11,81,11],[132,4,135,4],[136,4,138,4],[139,4,142,4],[120,4,123,4],[116,4,119,4],[112,4,115,4],[192,4,194,4],[184,4,188,4],[181,4,183,4],[178,4,180,4],[143,4,147,4],[156,4,158,4],[163,4,165,4],[166,4,170,4],[171,4,173,4],[174,4,177,4],[159,4,162,4],[152,4,155,4],[148,4,151,4],[124,4,127,4],[189,4,191,4],[189,2,191,2],[192,2,194,2],[1,2,2,2],[171,2,173,2],[174,2,177,2],[178,2,180,2],[181,2,183,2],[82,4,84,4],[79,4,81,4],[44,4,47,4],[48,4,50,4],[51,4,54,4],[59,4,62,4],[63,4,66,4],[55,4,58,4],[75,4,78,4],[91,4,93,4],[94,4,96,4],[97,4,99,4],[100,4,103,4],[104,4,107,4],[85,4,87,4],[88,4,90,4],[108,4,111,4],[132,2,135,2],[136,2,138,2],[139,2,142,2],[143,2,147,2],[148,2,151,2],[112,2,115,2],[116,2,119,2],[184,2,188,2],[152,2,155,2],[156,2,158,2],[159,2,162,2],[163,2,165,2],[166,2,170,2],[120,2,123,2],[124,2,127,2],[128,2,131,2],[94,2,96,2],[97,2,99,2],[100,2,103,2],[104,2,107,2],[108,2,111,2],[19,4,23,4],[24,4,28,4],[29,4,31,4],[19,3,23,3],[24,3,28,3],[29,3,31,3],[32,4,36,4],[40,4,43,4],[37,4,39,4],[128,4,131,4],[82,2,84,2],[85,2,87,2],[88,2,90,2],[91,2,93,2],[59,2,62,2],[63,2,66,2],[67,2,71,2],[72,2,74,2],[75,2,78,2],[48,2,50,2],[51,2,54,2],[55,2,58,2],[19,2,23,2],[24,2,28,2],[29,2,31,2],[32,2,36,2],[37,2,39,2],[79,2,81,2],[0,0,0,12],[1,4,1,5],[15,2,18,2],[11,2,14,2],[7,2,10,2],[1,6,1,11],[1,12,2,12],[7,4,10,4],[40,2,43,2],[29,11,31,11],[32,11,36,11],[37,11,39,11],[40,11,43,11],[37,1,39,1],[40,1,43,1],[1,1,2,1],[32,3,36,3],[37,3,39,3],[3,1,6,1],[11,4,14,4],[15,4,18,4],[1,0,2,0],[15,0,18,0],[1,3,2,3],[7,3,10,3],[11,3,14,3],[63,3,66,3],[67,3,71,3],[72,3,74,3],[75,3,78,3],[79,3,81,3],[82,3,84,3],[40,3,43,3],[44,3,47,3],[48,3,50,3],[51,3,54,3],[55,3,58,3],[59,3,62,3],[112,3,115,3],[116,3,119,3],[120,3,123,3],[124,3,127,3],[85,3,87,3],[88,3,90,3],[91,3,93,3],[94,3,96,3],[97,3,99,3],[100,3,103,3],[67,4,71,4],[72,4,74,4],[184,3,188,3],[189,3,191,3],[3,3,6,3],[3,2,6,2],[152,3,155,3],[156,3,158,3],[192,3,194,3],[159,3,162,3],[163,3,165,3],[166,3,170,3],[171,3,173,3],[174,3,177,3],[178,3,180,3],[181,3,183,3],[128,3,131,3],[132,3,135,3],[136,3,138,3],[139,3,142,3],[143,3,147,3],[148,3,151,3],[104,3,107,3],[108,3,111,3],[3,12,6,12],[7,12,10,12],[11,12,14,12],[15,12,18,12],[40,12,43,12],[44,12,47,12],[3,0,6,0],[3,4,6,4],[3,11,6,11],[15,3,18,3],[44,2,47,2],[44,11,47,11],[44,0,47,0],[44,1,47,1],[19,12,23,12],[24,12,28,12],[32,12,36,12],[67,12,71,12],[143,12,147,12],[166,12,170,12],[94,12,96,12],[97,12,99,12],[136,12,138,12],[128,12,131,12],[132,12,135,12],[139,12,142,12],[148,12,151,12],[152,12,155,12],[159,12,162,12],[156,12,158,12],[104,12,107,12],[108,12,111,12],[112,12,115,12],[116,12,119,12],[120,12,123,12],[124,12,127,12],[51,12,54,12],[55,12,58,12],[163,12,165,12],[171,12,173,12],[178,12,180,12],[181,12,183,12],[189,12,191,12],[192,12,194,12],[184,12,188,12],[29,12,31,12],[37,12,39,12],[48,12,50,12],[72,12,74,12],[79,12,81,12],[82,12,84,12],[85,12,87,12],[88,12,90,12],[91,12,93,12],[174,12,177,12],[59,12,62,12],[63,12,66,12],[75,12,78,12],[100,12,103,12]]}
["2024학년도 제1학기 마이크로전공 목록"]
["순번","마이크로전공명","유형","신설목적","운영 주체",null,"교육과정",{"$nulls":5},"신청\n가능\n대상"]
[{"$nulls":4},"주관학과(교원)","참여학과(교원)","교과목명","학수번호","주관학과","이수구분","학점","학점계"]
[1,"단백질 생화학","자기전공활용형","생명공학 분야에서 중요성이 높아지고 있는 단백질에 대한 전공 지식은 동 분야 취업 기회가 늘어감에 다라 필수적으로 고려해야 하는 것으로 이들 기초지식에 대한 체계적인 구성을 목표로하며. 관련 전문가를 양성하는데 목적이 있음.","그린화학공학과","단독","기초생명공학Ⅰ","HBEC0021","그린화학공학과","1전선",3,13,"전학년"]
[{"$nulls":6},"분자설계공학및실습(PBL)","HBEC0006","그린화학공학과","1전선",3]
[{"$nulls":6},"생명공학및실험Ⅰ","HBEC0018","그린화학공학과","1전선",4]
[{"$nulls":6},"유기화학","HBEC0010","그린화학공학과","1전선",3]
[2,"신에너지","자기전공활용형","신에너지 분야는 최근 사회 수용성 증가로 인한 산업계 수요가 급증하고 있기 때문에 이에 대한 전문 인력 수급이 요청되고 있어 해당 분야의 전공지식을 체계적으로 전달 하는것을 목적으로 함.","그린화학공학과","단독","에너지변환공학(이론)","HBJG4143","그린화학공학과","1전심",3,{"$f":"SUMIF($B$4:$B$195,B8,$K$4:$K$336)","v":12},"전학년"]
[null,{"$f":"B8","v":"신에너지"},{"$nulls":4},"전기화학공학","HBJG4121","그린화학공학과","1전선",3]
[null,{"$f":"B9","v":"신에너지"},{"$nulls":4},"화학공학양론","HBEC0020","그린화학공학과","1전선",3]
[null,{"$f":"B10","v":"신에너지"},{"$nulls":4},"화학반응공학및연습","HBEC0019","그린화학공학과","1전선",3]
[3,"비전공자용\n화학기초","자기전공활용형","우리나라에서는 화학관련 산업분야가 많고 , 기초과학으로서의 화학이 광범위하게 산업현장에서 활용되고 있음. 화학분야에 관심이 있는 타전공생들을 포함하여 고등학교 화학 교과보다는 심화된 화학관련 기초지식을 습득하여 유관 산업에 대한 이해를 높이는 것을 목적으로함.","그린화학공학과","단독","유기화학","HBEC0010","그린화학공학과","1전선",3,{"$f":"SUMIF($B$4:$B$195,B12,$K$4:$K$336)","v":14},"전학년"]
[null,{"$f":"B12","v":"비전공자용\n화학기초"},{"$nulls":4},"일반화학및연습I","HBEC0029","그린화학공학과","1전선",4]
[null,{"$f":"B13","v":"비전공자용\n화학기초"},{"$nulls":4},"일반화학및연습II","HBEC0030","그린화학공학과","1전선",4]
[null,{"$f":"B14","v":"비전공자용\n화학기초"},{"$nulls":4},"화공분석화학","HBJG4148","그린화학공학과","1전선",3]
[4,"국제개발협력과 지속가능개발","사회수요맞춤형\n-자격증형","KOICA 에서는 'ODA 일반' 자격증 소지자 에 대해 많은 우대 혜택을 부여하고 있음(oda.koica.go.kr 참조). KOICA에서 발급하는 자격증은 국제 개발협력 분야로의 취업 및 진출을 지원하고자 하는데 도움이 됨 본 마이크로전공은 이러한 자격취득을 목적으로 하고있음.","백선욱(소프트웨어학과)","장지현(계당교양교육원)","SDGs기반 국제협력과 문화커뮤니케이션","HBVC0001","지속가능개발마이크로전공","1MD",3,{"$f":"SUMIF($B$4:$B$195,B16,$K$4:$K$336)","v":9},"전학년"]
[null,{"$f":"B16","v":"국제개발협력과 지속가능개발"},null,null,null,"전정미(한국언어문화전공)","사회봉사","HBRA1001","글로벌인문학부대학","교선",1]
[null,{"$f":"B17","v":"국제개발협력과 지속가능개발"},null,null,null,"조순정(영어권지역학전공)","영상으로보는국제개발협력이슈","HBLG2048","소프트웨어학과","일선",3]
[null,{"$f":"B18","v":"국제개발협력과 지속가능개발"},null,null,null,"최주희(스마트정보통신공학과)","적정디자인&적정기술기반융복합프로젝트","HBOA1005","교무팀","1전선",2]
[5,"비즈니스영어","자기전공활용형"," 영어권 지역학 전공분야에서 비즈니스 영어 마이크로 학위 프로그램을 도입한 본 프로그램은 단기 실용 교육과정으로 특성화 교육을 통해 창의적 융합형 인재를 양성하고, 실무능력을 향상시키며, 현대 취업시장의 요구에 부합하는 인재 양성을 목적으로하고 있음.","영어권지역학전공","단독","글로벌커뮤니케이션","HBHB4536","영어권지역학전공","1전선",2,{"$f":"SUMIF($B$4:$B$195,B20,$K$4:$K$336)","v":14},"전학년"]
[null,{"$f":"B20","v":"비즈니스영어"},{"$nulls":4},"비즈니스스피킹","HBHB4512","영어권지역학전공","1전심",3]
[null,{"$f":"B21","v":"비즈니스영어"},{"$nulls":4},"비즈니스영어독해","HBHB4534","영어권지역학전공","1전선",3]
[null,{"$f":"B22","v":"비즈니스영어"},{"$nulls":4},"영어권ESG기업문화와콘텐트마케팅(캡스톤디자인)","HBHB4516","영어권지역학전공","1전선",3]
[null,{"$f":"B23","v":"비즈니스영어"},{"$nulls":4},"컨벤션영어","HBHB4538","영어권지역학전공","1전선",3]
[6,"영상미디어번역","융합연계형","글로벌 동영상 콘텐츠 제작에 필수로 자리잡은 더빙, 자막번역전문가 분야의 전문교육과정이 4년제 대학과정에 전무하고, 관련 시장을 선도한다는 취지에서 미디어 번역교육 전문가 양성을 목적으로함.","박명수(영어권지역학전공)","이희영(한국언어문화전공)","영상번역과대중문화","HBHB4527","영어권지역학전공","1전심",3,{"$f":"SUMIF($B$4:$B$195,B25,$K$4:$K$336)","v":15},"전학년"]
[null,{"$f":"B25","v":"영상미디어번역"},{"$nulls":4},"영상번역입문","HBHB4537","영어권지역학전공","1전선",3]
[null,{"$f":"B26","v":"영상미디어번역"},{"$nulls":4},"영-한통번역입문","HBHB4521","영어권지역학전공","1전선",3]
[null,{"$f":"B27","v":"영상미디어번역"},{"$nulls":4},"영희곡과더빙번역","HBHB4523","영어권지역학전공","1전선",3]
[null,{"$f":"B28","v":"영상미디어번역"},{"$nulls":4},"한국어문법론","HBHA2172","한국언어문화전공","1전선",3]
[7,"패션실무마이크로전공","자기전공활용형","패션산업의 실무 체험을 목적으로 패션디자인 전공 내 교과과목들을 함축적으로 경험할 수 있도록 하는 목적으로함.","패션디자인전공","단독","디지털패션디자인(PBL)","HBIC2162","패션디자인전공","1전선",3,{"$f":"SUMIF($B$4:$B$195,B30,$K$4:$K$336)","v":9},"전학년"]
[null,{"$f":"B30","v":"패션실무마이크로전공"},{"$nulls":4},"패션워크샵Ⅱ(캡스톤디자인)","HBIC4360","패션디자인전공","1전심",3]
[null,{"$f":"B31","v":"패션실무마이크로전공"},{"$nulls":4},"패턴CAD(캡스톤디자인)","HBIC3022","패션디자인전공","1전선",3]
[8,"글로벌문화관광해설사","사회수요맞춤형-자격증형","해외 테마여행 등 우리의 해외여행 스타일이 기존의 패키지 여행에서 자유여행 형태로 바뀌고 있다는 점에서, 현재의 언어와 지역학 차원의 지식뿐만 아니라 기획 능력을 겸비한 글로벌 문화관광 해설사의 사회적 수요가 커지고 있어 이와 관련된 자격증 취득을 목적으로함.","이경수(프랑스어권지역학전공)","최현주(문화예술경영전공)","글로벌문화콘텐츠기획","HBHI0008","글로벌문화콘텐츠연계전공","1전선",3,{"$f":"SUMIF($B$4:$B$195,B33,$K$4:$K$336)","v":15},"전학년"]
[null,{"$f":"B33","v":"글로벌문화관광해설사"},{"$nulls":4},"문화예술기획(PBL)","HBKE0047","문화예술경영전공","1전심",3]
[null,{"$f":"B34","v":"글로벌문화관광해설사"},{"$nulls":4},"문화예술기획(캡스톤디자인)","HBKE0027","문화예술경영전공","1전심",3]
[null,{"$f":"B35","v":"글로벌문화관광해설사"},{"$nulls":4},"프랑스어첫걸음","HBHC4483","프랑스어권지역학전공","1전선",3]
[null,{"$f":"B36","v":"글로벌문화관광해설사"},{"$nulls":4},"현대프랑스의사회와문화","HBHC4473","프랑스어권지역학전공","1전선",3]
[9,"마이크로환경공학","융합연계형","기술의 발전으로 인한 복잡한 문제해결능력을 갖춘 전문인력 양성과 융합을 통한 창의적인 분야에 대한 적응력 향상을 통한 경쟁력 강화를 목적으로 함.","오세원(그린화학공학과)","안병렬(건설시스템공학과)","대기오염제어공학","HBJG4107","그린화학공학과","1전심",3,{"$f":"SUMIF($B$4:$B$195,B38,$K$4:$K$336)","v":9},"전학년"]
[null,{"$f":"B38","v":"마이크로환경공학"},{"$nulls":4},"상하수도공학및지역현장실습Ⅰ","HBJG4112","건설시스템공학과","1전선",3]
[null,{"$f":"B39","v":"마이크로환경공학"},{"$nulls":4},"에어로졸공학","HBEC0016","그린화학공학과","1전선",3]
[10,"IT통신시스템","자기전공활용형","IT 산업을 국가 주력 산업을 하는 대한민국에서 IT 산업의 근간이 되는 유무선 통신 시스템을 전문적으로 학습한 전공인재 양성 을 목적으로함.","스마트정보통신공학과","단독","네트워크설계","HBJM2092","스마트정보통신공학과","1전심",3,{"$f":"SUMIF($B$4:$B$195,B41,$K$4:$K$336)","v":12},"전학년"]
[null,{"$f":"B41","v":"IT통신시스템"},{"$nulls":4},"무선통신시스템","HBJM2095","스마트정보통신공학과","1전심",3]
[null,{"$f":"B42","v":"IT통신시스템"},{"$nulls":4},"신호및시스템","HBJM2084","스마트정보통신공학과","1전선",3]
[null,{"$f":"B43","v":"IT통신시스템"},{"$nulls":4},"통신시스템설계","HBJM2141","스마트정보통신공학과","1전선",3]
[11,"AI를 위한 창의 데이터 소프트웨어 설계 기초","자기전공활용형"," IT 교육과정에서 컴퓨팅 적 사고능력 배양을 위하여 기초프로그래밍 교육을 시행하고, 자료의 표현과 특성에 맞는 구조 학습을 위해 자료구조를 교육하고, 교육과정 마지막의 프로그래밍 설계 교과를 통해 문제를 정의하고 문제 해결을 위해 적합한 자료구조를 선택하여 설계하는 실습으로 컴퓨팅 사고력, 문제 해결능력, 창의력의 향상시키는 것을 목적으로 함.","스마트정보통신공학과","단독","C프로그래밍(PBL)","HBMA1007","스마트정보통신공학과","1전선",3,{"$f":"SUMIF($B$4:$B$195,B45,$K$4:$K$336)","v":12},"전학년"]
[null,{"$f":"B45","v":"AI를 위한 창의 데이터 소프트웨어 설계 기초"},{"$nulls":4},"고급 C프로그래밍","HBMA1018","스마트정보통신공학과","1전선",3]
[null,{"$f":"B46","v":"AI를 위한 창의 데이터 소프트웨어 설계 기초"},{"$nulls":4},"데이터베이스","HBJM2143","스마트정보통신공학과","1전선",3]
[null,{"$f":"B47","v":"AI를 위한 창의 데이터 소프트웨어 설계 기초"},{"$nulls":4},"자료구조설계(SW)","HBJM2133","스마트정보통신공학과","1전심",3]
[12,"데이터분석 전문가","사회수요맞춤형_자격증형","오늘날 데이터 처리 및 분석을 통한 데이터 활용은 생산성 향상, 고부가가치 및 고용 창출등 국가 경제적 가치 창출의 핵심동력으로 급부상하고 있으며, 데이터의 다각적 분석을 통해 조직의 전략방향을 제시하는 우수한 역량을 갖춘 데이터분석 전문가의 확보를 목적으로 함.","스마트정보통신공학과","단독","데이터베이스","HBJM2143","스마트정보통신공학과","1전선",3,{"$f":"SUMIF($B$4:$B$195,B49,$K$4:$K$336)","v":9},"전학년"]
[null,{"$f":"B49","v":"데이터분석 전문가"},{"$nulls":4},"데이터분석","HBSM0002","스마트정보통신공학과","1전선",3]
[null,{"$f":"B50","v":"데이터분석 전문가"},{"$nulls":4},"알고리즘","HBJM2140","스마트정보통신공학과","1전선",3]
[13,"정보통신 응용분야 AI","자기전공활용형","AI/인공지능 교과목을 마이크로전공으로 묶어 이수 체계를 구체화 하여.파이썬 프로그래밍으로부터 일반적인 머신 러닝 지식으로부터 무선통신과 이미지 처리 어플리케이션에 적용할 수 있는 AI모델까지 기초부터 심화내용 학습을 통해 모든 산업분야에 적용되는 AI를 활용하는 방법론을 학습하는 것을 목적으로 함.","스마트정보통신공학과","단독","고급 C프로그래밍","HBMA1018","스마트정보통신공학과","1전선",3,{"$f":"SUMIF($B$4:$B$195,B52,$K$4:$K$336)","v":12},"전학년"]
[null,{"$f":"B52","v":"정보통신 응용분야 AI"},{"$nulls":4},"머신러닝","HBJM2148","스마트정보통신공학과","1전선",3]
[null,{"$f":"B53","v":"정보통신 응용분야 AI"},{"$nulls":4},"지능비전시스템","HBSM0003","스마트정보통신공학과","1전심",3]
[null,{"$f":"B54","v":"정보통신 응용분야 AI"},{"$nulls":4},"지능형시스템개론","HBSM0001","스마트정보통신공학과","1전선",3]
[14,"지능형 통신 네트워크 시스템","자기전공활용형","본 과정은 IoT,AI,6G로 대변되는 미래 사회의 다양한 이종간 시스템과 기기들의 상호통신 기술에 대해 이론적 학습과 자기주도적 설계를 통한 실제 시스템 구현을 경험해볼 수 있도록 구성하였으며, 인공지능과의 접목을 통해 향후 도출될 수 있는 여러 문제들을 구상하고 이를 해결할 수 있는 문제해결형 인재 양성을 하는 것을 목적으로 함.","스마트정보동신공학과","단독","네트워크보안","HBJM2146","스마트정보통신공학과","1전선",3,{"$f":"SUMIF($B$4:$B$195,B56,$K$4:$K$336)","v":12},"전학년"]
[null,{"$f":"B56","v":"지능형 통신 네트워크 시스템"},{"$nulls":4},"네트워크설계","HBJM2092","스마트정보통신공학과","1전선",3]
[null,{"$f":"B57","v":"지능형 통신 네트워크 시스템"},{"$nulls":4},"무선통신시스템","HBJM2095","스마트정보통신공학과","1전심",3]
[null,{"$f":"B58","v":"지능형 통신 네트워크 시스템"},{"$nulls":4},"정보통신응용SW프로젝트","HBJM2139","스마트정보통신공학과","1전선",3]
[15,"풀스택 웹 개발자","자기전공활용형","최근 웹 개발 분야에서는 변화하는 기술에 맞춰 데이터베이스 웹 프론트엔드 및 백엔드 개발과 배포까지 전반적인 흐름을 이해하고 웹서비스 전반을 개발할 수 있는 풀스택 개발자를 지향하고 있으며, 기업 수요와 기술발전의 흐름에 맞춰 전통적인 웹 개발 기술을 익히고 최신 기술을 활용할 수 있는 풀스택 웹개발 전문가 양성을 목적으로 함.","스마트정보통신공학과","단독","객체지향프로그래밍(PBL)","HBMA1008","스마트정보통신공학과","1전선",3,{"$f":"SUMIF($B$4:$B$195,B60,$K$4:$K$336)","v":12},"전학년"]
[null,{"$f":"B60","v":"풀스택 웹 개발자"},{"$nulls":4},"서버프로그래밍","HBJM2145","스마트정보통신공학과","1전선",3]
[null,{"$f":"B61","v":"풀스택 웹 개발자"},{"$nulls":4},"웹프레임워크설계","HBJM2137","스마트정보통신공학과","1전선",3]
[null,{"$f":"B62","v":"풀스택 웹 개발자"},{"$nulls":4},"웹프로그래밍","HBJM2144","스마트정보통신공학과","1전선",3]
[16,"AI융합 비주얼디자인","자기전공활용형","스크린과 가상현실을 기반으로 한 디지털 시작이미지 생성이 활발하나, 아직 그에 따른 다양한 디자인 방법론이 정립되지 않아 디자인 전공생조차 시각적 질서를 찾는 데 어려움을 경험하고 있음. 탈중앙화가 강조되는 웹 3.0 시대의 개인맞춤형 온라인 서비스 제공을 위해 다양한 기획과 전략, 디지털 시각이미지 생성 교육을 목적으로 함.","커뮤니케이션디자인전공","트랜스미디어디자인융합전공","내러티브디자인","HBIW0001","트랜스미디어디자인융합전공","1전선",3,{"$f":"SUMIF($B$4:$B$195,B64,$K$4:$K$336)","v":12},"전학년"]
[null,{"$f":"B64","v":"AI융합 비주얼디자인"},{"$nulls":4},"시각문화디자인","HBIA4599","커뮤니케이션디자인전공","1전선",3]
[null,{"$f":"B65","v":"AI융합 비주얼디자인"},{"$nulls":4},"웹미디어디자인","HBIW0003","트랜스미디어디자인융합전공","1전선",3]
[null,{"$f":"B66","v":"AI융합 비주얼디자인"},{"$nulls":4},"타이포그래피","HBIA4346","커뮤니케이션디자인전공","1전선",3]
[17,"공간컴퓨팅 프로덕트디자인","융합연계형","공간 컴퓨팅 또는 spatial computing은 현실 공간과 디지털 정보를 융합하여 상호작용하는 컴퓨팅 환경을 말함. 이러한 공간 컴퓨팅 프로덕트 디자인 마이크로전공의 신설목적은 가까운 미래에 다가올 공간 컴퓨팅에서 요구될 인터페이스 디자인에 필요한 능력을 갖추도록 하는 데 있음. ","서승연(커뮤니케이션디자인전공)","김희균(AR·VR미디어디자인전공)","3D모델링Ⅱ","HBIT0005","AR·VR미디어디자인전공","1전선",3,{"$f":"SUMIF($B$4:$B$195,B68,$K$4:$K$336)","v":14},"전학년"]
[null,{"$f":"B68","v":"공간컴퓨팅 프로덕트디자인"},{"$nulls":4},"가상현실기초프로그래밍","HBIT0006","AR·VR미디어디자인전공","1전선",2]
[null,{"$f":"B69","v":"공간컴퓨팅 프로덕트디자인"},{"$nulls":4},"모션그래픽스모델링","HBIW0002","트랜스미디어디자인융합전공","1전선",3]
[null,{"$f":"B70","v":"공간컴퓨팅 프로덕트디자인"},{"$nulls":4},"사용자중심디자인(캡스톤디자인)","HBIA3141","커뮤니케이션디자인전공","1전선",3]
[null,{"$f":"B71","v":"공간컴퓨팅 프로덕트디자인"},{"$nulls":4},"웹미디어디자인","HBIW0003","트랜스미디어디자인융합전공","1전선",3]
[18,"디지털프로덕트디자인","자기전공활용형","비대면 온라인 모바일 중심의 앱 서비스가 발전하는 현 산업트렌드에 부합하기 위해 과거 제품 중심의 프로덕트가 아닌, 소프트웨어 혹은 디지털 프로덕트라고 불리는 모바일 앱 관련 UX 기획, 전략, 나아가 UI 화면설계와 프로토타입 능력을 함양 하고 해당 직업군 채용에 필요한 실무형 UX/UI포트폴리오 제작 등의 현장 중심 실무 교육을 제공을 목적으로 함","커뮤니케이션디자인전공","트랜스미디어디자인융합전공","사용자중심디자인(캡스톤디자인)","HBIA3141","커뮤니케이션디자인전공","1전선",3,{"$f":"SUMIF($B$4:$B$195,B73,$K$4:$K$336)","v":9},"전학년"]
[null,{"$f":"B73","v":"디지털프로덕트디자인"},{"$nulls":4},"웹미디어디자인","HBIW0003","트랜스미디어디자인융합전공","1전선",3]
[null,{"$f":"B74","v":"디지털프로덕트디자인"},{"$nulls":4},"정보인터랙션디자인","HBIA3142","커뮤니케이션디자인전공","1전선",3]
[19,"서비스경험디자인","융합연계형","서비스경험디자인은 고객이 유무형의 서비스를 경험하고 평가할 수 있도록 고객과 서비스가 접촉하는 요소를 도출하고 분석하여 서비스 기획을 기반으로 경험을 디자인하는 것을 목적으로함.","서승연(커뮤니케이션디자인전공)","김희균(AR·VR미디어디자인전공)","소셜이노베이션디자인(캡스톤디자인)","HBIA4343","커뮤니케이션디자인전공","1전선",3,{"$f":"SUMIF($B$4:$B$195,B76,$K$4:$K$336)","v":12},"전학년"]
[null,{"$f":"B76","v":"서비스경험디자인"},{"$nulls":4},"디자인씽킹","HBIA4598","커뮤니케이션디자인전공","1전선",3]
[null,{"$f":"B77","v":"서비스경험디자인"},{"$nulls":4},"브랜드경험디자인(PBL)","HBIA4340","커뮤니케이션디자인전공","1전선",3]
[null,{"$f":"B78","v":"서비스경험디자인"},{"$nulls":4},"AR‧VR서비스기획론","HBIT0008","AR·VR미디어디자인전공","1전선",3]
[20,"비전 AI","융합연계형","현대 산업의 요구에 부응하여 비전AI개발에 필요한 기술과 지식을 제공함으로써 학생들의 취업 기회를 확장을 목적으로함.","이성주(소프트웨어학과)","배동성(로봇AI융합전공)","선형대수","HBJY0006","로봇AI융합전공","1전선",3,{"$f":"SUMIF($B$4:$B$195,B80,$K$4:$K$336)","v":9},"전학년"]
[null,{"$f":"B80","v":"비전 AI"},{"$nulls":4},"언어지능의이해와응용(PBL)","HBJY0002","로봇AI융합전공","1전선",3]
[null,{"$f":"B81","v":"비전 AI"},{"$nulls":4},"영상처리(PBL)","HBJO0053","소프트웨어학과","1전선",3]
[21,"데이터과학","융합연계형","현대산업의 요구에 부응하여 데이터과학 분석 및 응용에 필요한 기술과 지식을 제공함으로써 학생들의 취업 기회를 확장을 목적으로함.","이성주(소프트웨어학과)","배동성(로봇AI융합전공)","데이터과학개론(PBL)","HBJO2219","소프트웨어학과","1전심",3,{"$f":"SUMIF($B$4:$B$195,B83,$K$4:$K$336)","v":9},"전학년"]
[null,{"$f":"B83","v":"데이터과학"},{"$nulls":4},"시각지능의이해와응용(PBL)","HBJY0001","로봇AI융합전공","1전선",3]
[null,{"$f":"B84","v":"데이터과학"},{"$nulls":4},"지능형소프트웨어(PBL)","HBJO2207","소프트웨어학과","1전심",3]
[22,"메타버스컨텐츠","융합연계형","메타버스 환경에서 캐릭터와 주변 사물을 생성하고 상호작용을 하는 과정에서 소프트웨어적인 개념과 디자인 요소가 필수적임. 이를 융합하여 필요 기술습득을 목적으로함.","이성주(소프트웨어학과)","김희균(AR·VR미디어디자인전공)","AR‧VR디자인프로그래밍응용","HBIT0018","AR·VR미디어디자인전공","1전심",3,{"$f":"SUMIF($B$4:$B$195,B86,$K$4:$K$336)","v":9},"전학년"]
[null,{"$f":"B86","v":"메타버스컨텐츠"},{"$nulls":4},"컴퓨터그래픽스(PBL)","HBJO2224","소프트웨어학과","1전심",3]
[null,{"$f":"B87","v":"메타버스컨텐츠"},{"$nulls":4},"컴퓨터프로그래밍Ⅱ(PBL)","HBJO2161","소프트웨어학과","1전선",3]
[23,"메타버스A I","융합연계형","메타버스 환경은 사용자가 체험할 수 있는 공간을 구성하는 것을 목표로 함. 이 과정에서 사용자의 요구사항들이 발생하며, 이를 충족하는 것이 중요함. 문제점을 확인하고 , 이를 인공지능을 이용하여 디자인적으로 해석하는 능력을 습득하는것을 목적으로함.","이성주(소프트웨어학과)","김희균(AR·VR미디어디자인전공)","AR‧VR디자인프로그래밍Ⅱ","HBIT0013","AR·VR미디어디자인전공","1전선",3,{"$f":"SUMIF($B$4:$B$195,B89,$K$4:$K$336)","v":9},"전학년"]
[null,{"$f":"B89","v":"메타버스A I"},{"$nulls":4},"지능형소프트웨어(PBL)","HBJO2207","소프트웨어학과","1전심",3]
[null,{"$f":"B90","v":"메타버스A I"},{"$nulls":4},"컴퓨터프로그래밍Ⅰ(PBL)","HBJO2173","소프트웨어학과","1전선",3]
[24,"앱/웹 프로그래밍","자기전공활용형","현대 산업의 요구에 부응하여 앱 및 웹 개발에 필요한 기술과 지식을 제공함으로써 학생들이 취업 기회를 확장을 목적으로함.","소프트웨어학과","단독","모바일프로그래밍","HBJO2209","소프트웨어학과","1전선",3,{"$f":"SUMIF($B$4:$B$195,B92,$K$4:$K$336)","v":9},"전학년"]
[null,{"$f":"B92","v":"앱/웹 프로그래밍"},{"$nulls":4},"웹서버프로그래밍(PBL)","HBJO0052","소프트웨어학과","1전심",3]
[null,{"$f":"B93","v":"앱/웹 프로그래밍"},{"$nulls":4},"웹프로그래밍","HBJW0008","소프트웨어학과","1전선",3]
[25,"임베디드IOT","자기전공활용형","현대 산업의 요구에 부응하여 임베디드 IoT 기술 개발에 필요한 기술과 지식을 제공함으로써 학생들의 취업 기회를 확장하는것을 목적으로함.","소프트웨어학과","단독","리눅스프로그래밍(PBL)","HBJW0012","소프트웨어학과","1전선",3,{"$f":"SUMIF($B$4:$B$195,B95,$K$4:$K$336)","v":9},"전학년"]
[null,{"$f":"B95","v":"임베디드IOT"},{"$nulls":4},"병렬프로그래밍(PBL)","HBJO2218","소프트웨어학과","1전심",3]
[null,{"$f":"B96","v":"임베디드IOT"},{"$nulls":4},"임베디드loT프로그래밍(PBL)","HBJO2205","소프트웨어학과","1전선",3]
[26,"UX/UI SW 개발","자기전공활용형","현대 산업의 요구에 부응하여 UX/UI 개발에 필요한 기술과 지식을 제공함으로써 학생들의 취업 기회를 확장하는것을 목적으로함.","소프트웨어학과","단독","소프트웨어공학(PBL)","HBJO2223","소프트웨어학과","1전선",3,{"$f":"SUMIF($B$4:$B$195,B98,$K$4:$K$336)","v":9},"전학년"]
[null,{"$f":"B98","v":"UX/UI SW 개발"},{"$nulls":4},"인간-컴퓨터 상호작용(PBL)","HBJW0021","소프트웨어학과","1전선",3]
[null,{"$f":"B99","v":"UX/UI SW 개발"},{"$nulls":4},"컴퓨터그래픽스(PBL)","HBJO2224","소프트웨어학과","1전심",3]
[27,"AR·VR미디어디자인프로그래밍","자기전공활용형","AR.VR 미디어디자인은 AR(증강현실), VR(가상현실), MR(혼합협실), XR(확장현실)등 범용 기술과 복합체로서, 경제활동 공간이 현실에서 가상융합공간까지 확장되어 새로운 경험과 경제적 가치를 창출하는 역할을 하고 있으며, 디자인 및 문화예술 분야에 첨단 기술을 접목해 고부가가치를 창출하는 최첨단 분야로서, 산업의 중요성이 확대됨에 따라 AR.VR 미디어디자인 프로그래밍 마이크로를 전공한 전문가 양성을 목적으로 함.","AR·VR미디어디자인전공","단독","AR‧VR디자인프로그래밍Ⅰ","HBIT0009","AR·VR미디어디자인전공","1전선",3,{"$f":"SUMIF($B$4:$B$195,B101,$K$4:$K$336)","v":11},"전학년"]
[null,{"$f":"B101","v":"AR·VR미디어디자인프로그래밍"},{"$nulls":4},"AR‧VR디자인프로그래밍Ⅱ","HBIT0013","AR·VR미디어디자인전공","1전선",3]
[null,{"$f":"B102","v":"AR·VR미디어디자인프로그래밍"},{"$nulls":4},"AR‧VR디자인프로그래밍응용","HBIT0018","AR·VR미디어디자인전공","1전심",3]
[null,{"$f":"B103","v":"AR·VR미디어디자인프로그래밍"},{"$nulls":4},"가상현실기초프로그래밍","HBIT0006","AR·VR미디어디자인전공","1전선",2]
[28,"금융빅데이터분석","사회수요맞춤형-산학연계형","경영공학과에서 금융 분야로 진출하는 비율의 확대와 교육적 수전의 향상 그리고 조기의 학.석사 연계 교육 등으로의 진입 분위기 전환 등을 위해서 금융빅데이터분석(Financial Big Data Analysis) 마이크로 전공을 개설함. 기존의 금융공학, 금용AI실습, 경영빅데이터분석 등으로 마이크로 전공 교과과정을 구성하고 차후 필요에 따라서 추가적인 개편을 통해서 환류 시스템을 구축하는것을 목적으로 함.","경영공학과","단독","경영빅데이터분석","HBJP2287","경영공학과","1전선",3,{"$f":"SUMIF($B$4:$B$195,B105,$K$4:$K$336)","v":12},"전학년"]
[null,{"$f":"B105","v":"금융빅데이터분석"},{"$nulls":4},"금융AI","HBJP2290","경영공학과","1전선",3]
[null,{"$f":"B106","v":"금융빅데이터분석"},{"$nulls":4},"금융공학","HBJP2257","경영공학과","1전심",3]
[null,{"$f":"B107","v":"금융빅데이터분석"},{"$nulls":4},"재무관리(경영공학과)","HBJP2245","경영공학과","1전심",3]
[29,"디지털마케팅애널리틱스","자기전공활용형"," 경영공학과 전공 학생들에게 디지털 마케팅을 집중적으로 학습하고 자신의 역량을 확보할 수 있는 기회 제공하고, 마케팅 역량, DX 역량, 비즈니스 애널리틱스 분석 역량을 종합적으로 갖춘 디지털 마케팅 분석 전문가 양성하며,디지털마케팅과 마케팅 애널리틱스에 관심 있는 다양한 분야의 타 전공 학생들에게는 이 분야에 접근할 수 있는 기회 제공하는것을 목적으로 하고 있음.","경영공학과","단독","경영데이터분석기초","HBJP2151","경영공학과","1전필",3,{"$f":"SUMIF($B$4:$B$195,B109,$K$4:$K$336)","v":12},"전학년"]
[null,{"$f":"B109","v":"디지털마케팅애널리틱스"},{"$nulls":4},"경영정보시스템","HBJP2252","경영공학과","1전선",3]
[null,{"$f":"B110","v":"디지털마케팅애널리틱스"},{"$nulls":4},"경영통계분석실습(PBL)","HBJP2274","경영공학과","1전선",3]
[null,{"$f":"B111","v":"디지털마케팅애널리틱스"},{"$nulls":4},"마케팅(경영공학과)","HBJP2253","경영공학과","1전선",3]
[30,"금융상품모델링","융합연계형","금융 시장에서는 다양한 상품의 가치평가, 위험관리, 포트폴리오 최적화 등을 수행하는 핵심기술이 필수적이며, 실제 시장 데이터와 통계적 모델, 컴퓨터 프로그래밍등을 활용하여 정확하고 유용한 모델을 개발하고 적용할 수 있 기술을 체계적으로 학습하고 실무에서 활용할 수 있는 실무 경험을 제공하여 학생들이 실제 금융 시장에서의 문제를 해결하는 능력을 갖출수 있도록 교육하는 것을 목적으로 함","유재필(경영공학과)","신현준(경영공학과)","금융AI","HBJP2290","경영공학과","1전선",3,{"$f":"SUMIF($B$4:$B$195,B113,$K$4:$K$336)","v":12},"전학년"]
[null,{"$f":"B113","v":"금융상품모델링"},null,null,null,"오동일(글로벌금융경영학부)","금융공학","HBJP2257","경영공학과","1전심",3]
[null,{"$f":"B114","v":"금융상품모델링"},null,null,null,"김수은(글로벌금융경영학부)","투자론","HBJE3282","글로벌금융경영학부","1전선",3]
[null,{"$f":"B115","v":"금융상품모델링"},{"$nulls":4},"회계원리","HBJE4475","글로벌금융경영학부","1전선",3]
[31,"빅데이터와소셜미디어분석","융합연계형"," 소셜미디어 데이터를 마케팅 방법론과 빅데이터 기술을 융합하여 분석함으로써 기업 및 사회에 필요한 인사이트를 발굴해내는 융합형 비즈니스 전문가 양성과,소셜미디어의 텍스트의 분석(텍스트마이닝, 비즈니스를 위한 자연어처리)을 매개로 어문, 경영, 공학 계열의 학생들을 위한 융합형 과정 제공을 목적으로 하고 있음.","김길환(경영공학과)","왕한호(스마트정보통신공학과)","경영데이터마이닝","HBJP2161","경영공학과","1전선",3,{"$f":"SUMIF($B$4:$B$195,B117,$K$4:$K$336)","v":12},"전학년"]
[null,{"$f":"B117","v":"빅데이터와소셜미디어분석"},{"$nulls":4},"경영빅데이터분석","HBJP2287","경영공학과","1전선",3]
[null,{"$f":"B118","v":"빅데이터와소셜미디어분석"},{"$nulls":4},"머신러닝","HBJM2148","스마트정보통신공학과","1전선",3]
[null,{"$f":"B119","v":"빅데이터와소셜미디어분석"},{"$nulls":4},"빅데이터와소셜마케팅","HBLB5059","스마트정보통신공학과","교양",3]
[32,"융합미디어디자인마케팅","융합연계형","문화, 비즈니스, 예술과 결합한 다양한 부가가치가 창출되는 사회로 전환됨에 따라 오늘날 사회가 요구하는 디자인 사고와 역량 증진을 도모하여 이를 기반으로 모바일 비즈니스 기획과 미디어 창작 교육 융합을 통해 미디어 활용 기술을 활용하여 마케팅을 수행할 수 있는 전문가 인재 양성을 목적으로 함","양린(텍스타일디자인전공)","장선희(대학원 감성공학과)","모바일비즈니스와앱","HBLA5071","계당교양교육원","교양",3,{"$f":"SUMIF($B$4:$B$195,B121,$K$4:$K$336)","v":13},"전학년"]
[null,{"$f":"B121","v":"융합미디어디자인마케팅"},null,null,null,"박현주(스마트정보통신학과)","직물디자인과브랜드전략(PBL)","HBID4439","텍스타일디자인전공","1전선",3]
[null,{"$f":"B122","v":"융합미디어디자인마케팅"},{"$nulls":4},"직물디자인기획Ⅱ(캡스톤디자인)","HBID3302","텍스타일디자인전공","1전심",4]
[null,{"$f":"B123","v":"융합미디어디자인마케팅"},{"$nulls":4},"미디어와콘텐츠창작","HALF9351","계당교양교육원","교양",3]
[33,"디지털텍스타일디자인","융합연계형","최근 디지털 미디어 기술과 다양한 과학기술과의 접목으로 기존 텍스타일디자인의 한계를 넘어 메타버스 시대에 새로운 방식의 텍스타일디자인 창작법과 표현 방식을 창출할 수 있는 전문가 양성을 목적으로 함","양린(텍스타일디자인전공)","장선희(대학원 감성공학과)","디지털미디어","HBIO1114","디자인학부","1전선",3,{"$f":"SUMIF($B$4:$B$195,B125,$K$4:$K$336)","v":11},"전학년"]
[null,{"$f":"B125","v":"디지털텍스타일디자인"},{"$nulls":4},"자카드디자인(캡스톤디자인)","HBID4340","텍스타일디자인전공","1전심",2]
[null,{"$f":"B126","v":"디지털텍스타일디자인"},{"$nulls":4},"직물디자인과브랜드전략(PBL)","HBID4439","텍스타일디자인전공","1전선",3]
[null,{"$f":"B127","v":"디지털텍스타일디자인"},{"$nulls":4},"컴퓨터활용능력(영상콘텐츠기획&제작)","HALF9287","계당교양교육원","교양",3]
[34,"지능형반도체","자기전공활용형","지능형 반도체는 병렬 프로세싱 구조의 반도체 아키텍처를 활용하여 높은 성능, 낮은 전력 소모로 AI 연산을 실행하는 시스템 반도체의 핵심부품으로 향후 미래 반도체 시장을 지배할 것으로 예상함.본 마이크로 전공은 이러한 분야에 대한 전문가를 양성하는데 목적이 있음.`","시스템반도체공학과","단독","CMOSIC공정","HBEA0024","시스템반도체공학과","1전심",3,{"$f":"SUMIF($B$4:$B$195,B129,$K$4:$K$336)","v":10},"전학년"]
[null,{"$f":"B129","v":"지능형반도체"},{"$nulls":4},"CMOS트랜지스터(PBL)","HBEA0014","시스템반도체공학과","1전선",3]
[null,{"$f":"B130","v":"지능형반도체"},{"$nulls":4},"MOSFET회로설계","HBEA0008","시스템반도체공학과","1전선",2]
[null,{"$f":"B131","v":"지능형반도체"},{"$nulls":4},"MOSFET회로실험","HBEA0038","시스템반도체공학과","1전선",2]
[35,"AI프로그래밍 및 프로젝트","자기전공활용형","AI(인공지능)기술이 실용화 됨에 따라 AI반도체의 수요가 늘고 있으며 관련 전공학생뿐만 아니라 비이공계 학생들에게 파이썬을 사용해 프로그래밍, 데이터 분석 등 실무교육과 딥러닝, 인공지능 등 새로운 기술교육을 시행을 목적으로하고 있음.`","시스템반도체공학과","단독","파이썬프로그래밍실습","HBEA0045","시스템반도체공학과","1전선",1,9,"전학년"]
[null,{"$f":"B133","v":"AI프로그래밍 및 프로젝트"},{"$nulls":4},"알고리즘코딩테스트","HBEA0043","시스템반도체공학과","1전심",3]
[null,{"$f":"B134","v":"AI프로그래밍 및 프로젝트"},{"$nulls":4},"인공지능기초","HBEA0026","시스템반도체공학과","1전선",3]
[null,{"$f":"B135","v":"AI프로그래밍 및 프로젝트"},{"$nulls":4},"파이썬프로그래밍","HBEA0035","시스템반도체공학과","1전선",2]
[36,"시스템반도체설계","자기전공활용형","2022년 기준 전체 반도체 시장에서 시스템 반도체가 차지하는 비중이 약 71.8% 수준이며, 향후 시스템반도체 비중은 점점더 커질 것으로 예상됨.2023년 산업통상자원부와 한국반도체산업협회 자료에 따르면 국내 반도체 분야에서시스템 반도체 설계인력이 가장부족한것으로 판단하고 있음. 본 마이크로전공은 이러한 시스템반도체설계 전문인력 양성을 목적으로 하고 있음.","시스템반도체공학과","단독","Linux운영체제및시스템프로그래밍(PBL)","HBEA0040","시스템반도체공학과","1전선",3,9,"전학년"]
[null,{"$f":"B137","v":"시스템반도체설계"},{"$nulls":4},"FPGA프로젝트(PBL)","HBEA0032","시스템반도체공학과","1전선",3]
[null,{"$f":"#REF!","v":{"$error":"#REF!"}},{"$nulls":4},"컴퓨터구조","HBEA0009","시스템반도체공학과","1전심",3]
[37,"펌웨어설계","자기전공활용형","펌웨어 개발전문가는 전자, 자동차, 의료, 항공우주, 산업자동화 등 다양한 분야에서 필요로 하는 인재임. 과거의 펌웨어 개발 전문가는 경력직이 대다수였으나 최근 ARM 프로세서 펌웨어 개발의 경우, 대졸 신입사원을 뽑는 분야로 바뀌고 있으며, 이에 맞추어 펌웨어 개발에 관련된 마이크로전공을 신설하여 취업의 길을 넓히는 것을 목적으로 하고 있음.`","국중진(정보보안공학과)","단독","마이크로프로세서(PBL)","HBJQ0048","정보보안공학과","1전선",3,{"$f":"SUMIF($B$4:$B$195,B140,$K$4:$K$336)","v":12},"전학년"]
[null,{"$f":"B140","v":"펌웨어설계"},{"$nulls":4},"보안칩설계","HBJQ0059","정보보안공학과","1전심",3]
[null,{"$f":"B141","v":"펌웨어설계"},{"$nulls":4},"지능형임베디드시스템(SW)","HBJQ0046","정보보안공학과","1전심",3]
[null,{"$f":"B142","v":"펌웨어설계"},{"$nulls":4},"컴퓨터아키텍처","HBJQ0053","정보보안공학과","1전선",3]
[38,"엔터테인먼트 경영","자기전공활용형","한류문화산업의 변화와 트렌드에 맞서 학부생들의 엔터테인먼트 분야의 관심이 높아짐에 따라 관련 전문분야로 엔터테인먼트마이크로전공을 신설하여 교육하고자하는데 목적이 있음.`","문화예술경영전공","단독","문화예술기획(PBL)","HBKE0047","문화예술경영전공","1전심",3,{"$f":"SUMIF($B$4:$B$195,B144,$K$4:$K$336)","v":15},"전학년"]
[null,{"$f":"B144","v":"엔터테인먼트 경영"},{"$nulls":4},"문화전략","HBKE0046","문화예술경영전공","1전심",3]
[null,{"$f":"B145","v":"엔터테인먼트 경영"},{"$nulls":4},"문화콘텐츠경영","HBKE0016","문화예술경영전공","1전선",3]
[null,{"$f":"B146","v":"엔터테인먼트 경영"},{"$nulls":4},"엔터테인먼트경영","HBKE0049","문화예술경영전공","1전심",3]
[null,{"$f":"B147","v":"엔터테인먼트 경영"},{"$nulls":4},"한류문화산업","HBKE0050","문화예술경영전공","1전심",3]
[39,"디지털 영상 콘텐츠 프로덕션","사회수요맞춤형,산학연계형","동영상 콘텐츠와 미디어 플랫폼이 커뮤니케이션의 핵심이 된 현재, 동영상 구사능력은 제1외국어 능력만큼이나 필수적으로 각 분야에서 요구되고 있다.  이공계열이나 어문계열 등 자신의 전공 내의 역량이나 결과물을 동영상 콘텐츠로 제작할 수 있다면 취업과 진로에서 유리한 위치를 선점할 수 있을 것이다.","이찬복(영화전공)","이종윤(사진영상미디어전공)","1인미디어기획및제작(캡스톤디자인)","HBOA1018","영화영상전공","1전선",3,{"$f":"SUMIF($B$4:$B$195,B149,$K$4:$K$336)","v":12},"전학년"]
[null,{"$f":"B149","v":"디지털 영상 콘텐츠 프로덕션"},{"$nulls":4},"디지털 영상 콘텐츠 제작:EP1(PBL)","HBVA0001","디지털영상콘텐츠프로덕션마이크로전공","1MD",3]
[null,{"$f":"B150","v":"디지털 영상 콘텐츠 프로덕션"},{"$nulls":4},"디지털콘텐츠창작","HBIG2272","영화영상전공","1전선",3]
[null,{"$f":"B151","v":"디지털 영상 콘텐츠 프로덕션"},{"$nulls":4},"영상미디어실기Ⅰ(PBL)","HBIB2192","사진영상미디어전공","1전선",3]
[40,"지능형 모빌리티","사회수요맞춤형,산학연계형","충남 주력 산업분야인 스마트 모빌리티 분야 및 미래 국가 전략산업 중에 하나인 지능형 모빌리티 맞춤형 인재를 양성","강태구(휴먼지능로봇공학과)","정성균(휴먼지능로봇공학과)","강화학습","HBVD0001","지능형모빌리티마이크로전공","1MD",3,{"$f":"SUMIF($B$4:$B$195,B153,$K$4:$K$336)","v":12},"전학년"]
[null,{"$f":"B153","v":"지능형 모빌리티"},null,null,null,"배동성(소프트웨어학과)","스마트 모빌리티(PBL)","HBEB0060","휴먼지능로봇공학과","1전선",3]
[null,{"$f":"B154","v":"지능형 모빌리티"},{"$nulls":4},"항법시스템","HBEB0058","휴먼지능로봇공학과","1전선",3]
[null,{"$f":"B155","v":"지능형 모빌리티"},{"$nulls":4},"협동로봇실습 (PBL)","HBEB0059","휴먼지능로봇공학과","1전선",3]
[41,"전시컨벤션","사회수요맞춤형,자격증형","포스트 코로나 시대가 열리면서 그동안 막혀있던 다양한 국내외 행사들이 봇물 터지듯 열리고 있다. 온라인으로 진행되었던 강의가 대면강의로 바뀌며 학생들의 사회진출에 대한 다양한 계획들을 목도하며 창의적인 아이디어와 설계로 기존 강의에서 하지 못한 부분들에 학습욕구가 커지면서 주도적인 입장에서 할 수 있는 전시컨벤션을 지향하는 수요자들의 요구를 집약시켜 자격증을 취득할 수 있는 마이크로전공 과정을 신설하고자 한다. ","박정희(독일어권지역학전공)","최현주(문화예술경영전공)","독일어권기업문화론(캡스톤디자인)","HBHE4368","독일어권지역학전공","1전선",3,{"$f":"SUMIF($B$4:$B$195,B157,$K$4:$K$336)","v":9},"전학년"]
[null,{"$f":"B157","v":"전시컨벤션"},{"$nulls":4},"독일의도시와축제","HBHE4417","독일어권지역학전공","1전선",3]
[null,{"$f":"B158","v":"전시컨벤션"},{"$nulls":4},"문화예술기획(PBL)","HBKE0047","문화예술경영전공","1전심",3]
[42,"빅데이터분석및시각화","자기전공활용형","빅데이터는 2000년 이후 4차산업혁명, 인공지능과 함께 가장 핵 \n심이 되는 분야 중 하나이다. 현재는 IT분야 뿐만 아니라 비IT 분 \n야에서도 빅데이터를 분석하고 시각화할 수 있는 기술이 요구되 \n고 있다. 이러한 사회적 리즈에 맞는 마이크로전공 신설을 목적 \n으로 한다.","전준헌(전자공학과)","박현주(스마트정보통신학과)","컴퓨터사고와데이터의이해","HBLA5201","계당교양교육원","교필",2,{"$f":"SUMIF($B$4:$B$195,B160,$K$4:$K$336)","v":10},"전학년"]
[null,{"$f":"B160","v":"빅데이터분석및시각화"},null,null,null,"이우진(소프트웨어학과)","알고리즘과게임콘텐츠","HBLA5202","계당교양교육원","교필",2]
[null,{"$f":"B161","v":"빅데이터분석및시각화"},{"$nulls":4},"인포메이션테크놀러지시대의디지털리터러시","HBLG2021","스마트정보통신공학과","교선",3]
[null,{"$f":"B162","v":"빅데이터분석및시각화"},{"$nulls":4},"파이썬빅데이터시각화","HBLB5066","계당교양교육원","교선",3]
[43,"공학설계및 신호처리","자기전공활용형","공학 설계 및 신호 처리 전공은 시스템반도체(SoC; System on a Chip) 분야의 핵심 전공입니다. 마이크로프로세서를 이용한 임베디드시스템은 스 마트폰, 태블릿 PC, CCTV, 자동차 블랙박스 등 산업 전반에 고루 사용되고 있으며, 인공지능과 자율주행자동차와 같은 첨단 분야의 핵심 부품으로도 사용되고 있습니다. 이러한 제품들에는 반도체 프로세서의 역할이 점점 강조되고 있으며 반도체 설계의 이론적 토대인 신호 처리 능력은 핵심 지식으 로 부각되고 있습니다. 이에 공학 설계 및 신호 처리 전공 마이크로전공을 신설하고자 합니다. ","시스템반도체공학과","단독","ATmega시스템설계(IC-PBL)","HBEA0031","시스템반도체공학과","1전선",3,{"$f":"SUMIF($B$4:$B$195,B164,$K$4:$K$336)","v":9},"전학년"]
[null,{"$f":"B164","v":"공학설계및 신호처리"},{"$nulls":4},"디지털신호처리","HBEA0034","시스템반도체공학과","1전심",3]
[null,{"$f":"B165","v":"공학설계및 신호처리"},{"$nulls":4},"아날로그신호처리","HBEA0010","시스템반도체공학과","1전심",3]
[44,"보안SoC설계","융합연계형","보안 SoC 설계 전공은 정보보안과 시스템반도체(SoC; System on a Chip) 분야가 합쳐진 첨단 정보기술(IT) 분야 전공입니다. SoC는 스마트폰, 태블릿 PC, CCTV, 자동차 블랙박스 등 산업 전반에 고루 사용되고 있으며, 인공지능과 자율주행자동차와 같은 첨단 분야의 핵심 부품으로도 사용되고 있습니다. 이러한 제품들에는 정보보안의 역할이 점점 강조되고 있어 통신/영상보안, AI보안, 자동차보안 등의 전문가 양성이 필요합니다. 이에 맞추어 보안과 SoC를 융합한 보안 SoC 설계 마이크로전공을 신설하여 미래사회의 전문가를 양성.","정보보안공학과","시스템반도체공학과","FPGA프로젝트(PBL)","HBEA0032","시스템반도체공학과","1전선",3,{"$f":"SUMIF($B$4:$B$195,B167,$K$4:$K$336)","v":15},"전학년"]
[null,{"$f":"B167","v":"보안SoC설계"},{"$nulls":4},"HDL설계","HBJQ0054","정보보안공학과","1전심",3]
[null,{"$f":"B168","v":"보안SoC설계"},{"$nulls":4},"Verilog기반디지털시스템설계(PBL)","HBEA0027","시스템반도체공학과","1전선",3]
[null,{"$f":"B169","v":"보안SoC설계"},{"$nulls":4},"보안알고리즘","HBJQ0016","정보보안공학과","1전선",3]
[null,{"$f":"B170","v":"보안SoC설계"},{"$nulls":4},"보안칩설계","HBJQ0059","정보보안공학과","1전심",3]
[45,"창의로봇디자인","자기전공활용형","창의로봇디자인 마이크로전공은 로봇의 기구를 설계 및 제작하 \n교육고, 기능을 구현할 수 있는 기초 제어 능력을 배양하고, 그룹 \n목표 레인 스토밍을 통해 생활에서 활용할 수 있는 로봇을 개발할 수 있는 능력을 함양.","휴먼지능로봇공학과","단독","기초제어프로그래밍(SW)","HBEB0019","휴먼지능로봇공학과","1전선",3,{"$f":"SUMIF($B$4:$B$195,B172,$K$4:$K$336)","v":9},"전학년"]
[null,{"$f":"B172","v":"창의로봇디자인"},{"$nulls":4},"로봇기구학및설계(PBL)","HBEB0017","휴먼지능로봇공학과","1전선",3]
[null,{"$f":"B173","v":"창의로봇디자인"},{"$nulls":4},"창의로봇설계(IC-PBL)","HBMA1028","휴먼지능로봇공학과","1전선",3]
[46,"화이트해킹기술","자기전공활용형","최근 다양한 악성코드 및 시스템 취약점을 이용한 시스템 침투방법이 증가하고 있다. 본 마이크로 전공은 시스템 취약점 점검 도 \n구, 인터넷응용보안, 시스템보안, 네트워크보안 능력을 가지는 윤리적 화이트 해커 양성을 위해 개설한다","서창진(정보보안공학과)","미정","네트워크보안(PBL)","HBJQ0043","정보보안공학과","1전심",3,{"$f":"SUMIF($B$4:$B$195,B175,$K$4:$K$336)","v":12},"전학년"]
[null,{"$f":"B175","v":"화이트해킹기술"},{"$nulls":4},"리눅스보안실습","HBJQ0050","정보보안공학과","1전선",3]
[null,{"$f":"B176","v":"화이트해킹기술"},{"$nulls":4},"시스템보안","HBJQ0055","정보보안공학과","1전선",3]
[null,{"$f":"B177","v":"화이트해킹기술"},{"$nulls":4},"인터넷응용보안","HBJQ0058","정보보안공학과","1전선",3]
[47,"AI악성코드분석","자기전공활용형","기존의 악성코드 분석은 시그니처 기반의 정적, 동적 탐지기법을 활용하고 있다. 그러나 기존의 방법은 최근 다양하게 변화하는 악성코드 변종을 탐지하기에는 어려움이 있다. 본 마이크로 전공 목적은 악성코드 분석에 인공지능 기법을 도입하여 다양하게 변화하는 악성코드 탐지를 위하여 개설한다. ","서창진(정보보안공학과)","미정","머신러닝과정보보호","HBJQ0021","정보보안공학과","1전선",3,{"$f":"SUMIF($B$4:$B$195,B179,$K$4:$K$336)","v":9},"전학년"]
[null,{"$f":"B179","v":"AI악성코드분석"},{"$nulls":4},"악성코드분석","HBJQ0056","정보보안공학과","1전선",3]
[null,{"$f":"B180","v":"AI악성코드분석"},{"$nulls":4},"인공지능수학","HBMA1011","정보보안공학과","1전선",3]
[48,"모바일WEBAPP응용개발","자기전공활용형","웹서비스의 한계를 극복하기 위하여 HTML표준이 꾸준히 발전하고 있지만 클라이언트 디바이스를 제어하지 못하는 한계가 존재한다. \n사용자들은 더 많은 모바일 서비스 성능을 요구하고 있어 모바일 Web/App 응용개발 마이크로 전공을 신설한다.","서창진(정보보안공학과)","미정","데이터베이스실습","HBJQ0019","정보보안공학과","1전심",3,{"$f":"SUMIF($B$4:$B$195,B182,$K$4:$K$336)","v":9},"전학년"]
[null,{"$f":"B182","v":"모바일WEBAPP응용개발"},{"$nulls":4},"모바일프로그래밍(PBL)","HBJQ0025","정보보안공학과","1전선",3]
[null,{"$f":"B183","v":"모바일WEBAPP응용개발"},{"$nulls":4},"웹프로그래밍(정보보안공학과)","HBJQ0012","정보보안공학과","1전선",3]
[49,"미디어아트","자기전공활용형","디지털콘텐츠 전공에서는 2023년에 이어 2024년에도 문화관광부 산하 한국예술인협회의 예술대학 예비예술인 현장연계 지원사업에 선정되어 <Art-Tech 인력양성을 위한 GLOCAL PROJECT>를 진행하게 되었으며, 본 사업의 일환으로 4차산업시대에 발맞추어 새로운 예술 분야로의 확장을 꾀함.","디지털콘텐츠전공","단독","문화서비스기획(캡스톤디자인)","HBVB0002","미디어아트마이크로전공","1MD",3,{"$f":"SUMIF($B$4:$B$195,B185,$K$4:$K$336)","v":15},"전학년"]
[null,{"$f":"B185","v":"미디어아트"},{"$nulls":4},"문화서비스디자인(캡스톤디자인)","HBKI0020","디지털콘텐츠전공","1전선",3]
[null,{"$f":"B186","v":"미디어아트"},{"$nulls":4},"문화콘텐츠프로젝트(캡스톤디자인)","HBKI0067","디지털콘텐츠전공","1전심",3]
[null,{"$f":"B187","v":"미디어아트"},{"$nulls":4},"미디어아트프로젝트(캡스톤디자인)","HBVB0001","미디어아트마이크로전공","1MD",3]
[null,{"$f":"B188","v":"미디어아트"},{"$nulls":4},"실감미디어디자인(캡스톤디자인)","HBKI0017","디지털콘텐츠전공","1전심",3]
[50,"인공지능로봇디자인","자기전공활용형","인공 지능을 통해 로봇의 기본 기능을 구현할 수 있고, 자동화된 서비스 로봇을 실현할 수 있는 기본 소양을 갖출 수 있도록 하기 목적 위함","휴먼지능로봇공학과","단독","AI로봇어드벤처디자인","HBEB0055","휴먼지능로봇공학과","1전선",3,{"$f":"SUMIF($B$4:$B$195,B190,$K$4:$K$336)","v":9},"전학년"]
[null,{"$f":"B190","v":"인공지능로봇디자인"},{"$nulls":4},"기초역학및연습","HBEB0006","휴먼지능로봇공학과","1전선",3]
[null,{"$f":"B191","v":"인공지능로봇디자인"},{"$nulls":4},"로봇공학개론","HBEB0010","휴먼지능로봇공학과","1전선",3]
[51,"비주얼로봇디자인","자기전공활용형","컴퓨터 영상 처리를 통한 사물 및 상황 인식에 대한 기본 원리를 습득하고, 이를 이용하여 로봇 스스로 판단하고 상황에 적합한 목적 \n동작이 가능한 지능 제어 능력을 갖출 수 있도록 함 `","휴먼지능로봇공학과","단독","AI로봇파이썬(PBL)","HBEB0045","휴먼지능로봇공학과","1전선",3,{"$f":"SUMIF($B$4:$B$195,B193,$K$4:$K$336)","v":9},"전학년"]
[null,{"$f":"B193","v":"비주얼로봇디자인"},{"$nulls":4},"로봇비전(IC-PBL)","HBEB0008","휴먼지능로봇공학과","1전심",3]
[null,{"$f":"B194","v":"비주얼로봇디자인"},{"$nulls":4},"로봇제어프로젝트","HBEB0029","휴먼지능로봇공학과","1전선",3]